bitfinex/quotes_SOLUSD_20220208
["timestamp","ask_amount","ask_price","bid_price","bid_amount"]
[1644339598939,6.25,111.27,111.17,40.67380864]
[1644339599240,4.495,111.26,111.17,40.67380864]
[1644339599737,13.4896,111.25,111.17,40.67380864]
[1644339600037,4.495,111.24,111.17,40.67380864]
[1644339600238,4.745,111.24,111.17,40.67380864]
[1644339600639,4.495,111.24,111.17,40.67380864]
[1644339600840,6.0,111.26,111.18,1.96265958]
[1644339601239,29.5212,111.28,111.17,94.08780864]
[1644339601443,29.5212,111.28,111.18,0.024]
[1644339601739,13.4894,111.26,111.18,0.024]
[1644339601938,4.495,111.25,111.17,40.67380864]
[1644339602138,10.495,111.25,111.17,40.67380864]
[1644339602339,10.745,111.25,111.17,40.67380864]
[1644339603241,36.85516623,111.29,111.19,122.0]
[1644339603445,421.25301748,111.37,111.21,42.0]
[1644339603651,0.51291493,111.35,111.21,122.0]
[1644339603848,0.51291493,111.35,111.22,10.73]
[1644339604048,44.9418,111.36,111.22,28.48230132]
[1644339604254,44.9418,111.36,111.23,1.96772926]
[1644339604448,0.51291493,111.39,111.24,10.73]
[1644339604649,4.492,111.4,111.24,101.6035325]
[1644339604852,0.51291493,111.41,111.27,0.44]
[1644339605049,0.51291493,111.41,111.28,10.73]
[1644339605249,0.51291493,111.41,111.28,47.42126176]
[1644339605449,0.51291493,111.41,111.31,13.4691]
[1644339605653,73.6242,111.46,111.31,19.4691]
[1644339605854,0.03223709,111.47,111.32,12.69772926]
[1644339606050,0.03223709,111.47,111.32,18.69772926]
[1644339606254,0.03223709,111.49,111.33,13.56721372]
[1644339606453,0.03223709,111.46,111.36,13.4625]
[1644339606653,0.03223709,111.48,111.37,10.73]
[1644339606852,36.23568592,111.49,111.37,10.73]
[1644339607074,46.04665489,111.47,111.37,10.73]
[1644339607456,1.23875173,111.46,111.37,10.73]
[1644339607654,36.89639124,111.45,111.37,10.73]
[1644339608052,42.89639124,111.45,111.34,10.73]
[1644339608453,36.89639124,111.45,111.34,10.73]
[1644339608655,36.89639124,111.45,111.34,24.1984]
[1644339609057,36.89639124,111.45,111.34,30.1984]
[1644339609254,36.89639124,111.45,111.34,30.4484]
[1644339610054,36.89639124,111.45,111.35,1.9726203]
[1644339610354,0.03223709,111.47,111.38,13.4628]
[1644339610554,0.25,111.45,111.39,10.73]
[1644339610854,1.52098882,111.49,111.39,10.73]
[1644339611056,7.52098882,111.49,111.39,10.73]
[1644339611256,46.92467702,111.48,111.39,10.73]
[1644339611459,4.486,111.47,111.39,24.1922]
[1644339611661,44.19368568,111.46,111.39,10.73]
[1644339611854,4.487,111.45,111.39,10.73]
[1644339612054,47.67803474,111.44,111.36,10.73]
[1644339612257,47.92803474,111.44,111.36,10.73]
[1644339612656,47.67803474,111.44,111.36,10.73]
[1644339612957,47.67803474,111.44,111.37,13.4648]
[1644339613156,1.23875173,111.49,111.37,24.1948]
[1644339613157,5.75898882,111.49,111.37,24.1948]
[1644339613357,0.03223709,111.46,111.37,24.1948]
[1644339613558,4.51923709,111.48,111.37,24.1948]
[1644339613758,4.01923709,111.48,111.37,24.4448]
[1644339613960,4.0519163,111.48,111.4,13.4614]
[1644339614159,0.25,111.48,111.4,24.1914]
[1644339614356,46.51161625,111.47,111.4,24.1914]
[1644339614578,52.51161625,111.47,111.4,24.1914]
[1644339614757,52.76161625,111.47,111.4,24.1914]
[1644339615160,46.76161625,111.47,111.4,24.1914]
[1644339615360,4.51867921,111.49,111.4,24.1914]
[1644339615561,4.51867921,111.49,111.41,1.97838738]
[1644339615562,4.486,111.49,111.41,1.97838738]
[1644339615760,0.03267921,111.52,111.43,13.4537]
[1644339615961,1.23875173,111.54,111.44,10.73]
[1644339616167,0.03267921,111.53,111.44,16.73]
[1644339616363,0.03267921,111.55,111.45,4.483]
[1644339616566,46.24018004,111.57,111.46,55.5639]
[1644339616766,0.03267921,111.57,111.47,4.483]
[1644339616962,1.23875173,111.59,111.48,10.73]
[1644339617263,0.03267921,111.58,111.51,13.446]
[1644339617461,0.27143094,111.6,111.51,24.176]
[1644339617662,0.27143094,111.6,111.51,24.426]
[1644339618062,52.7426712,111.62,111.51,30.426]
[1644339618263,52.7426712,111.62,111.55,13.4422]
[1644339618462,52.7426712,111.62,111.55,24.1722]
[1644339618663,6.0,111.62,111.55,24.4222]
[1644339619066,10.48,111.64,111.55,24.4222]
[1644339619266,4.48,111.66,111.55,24.4222]
[1644339619667,42.28121598,111.65,111.55,30.4222]
[1644339619867,42.28121598,111.65,111.55,32.40058738]
[1644339620068,42.28121598,111.65,111.55,30.4222]
[1644339620267,42.28121598,111.65,111.55,30.1722]
[1644339621168,48.53121598,111.65,111.55,30.1722]
[1644339621670,42.53121598,111.65,111.55,32.15058738]
[1644339621868,42.53121598,111.65,111.55,32.40058738]
[1644339622089,42.28121598,111.65,111.55,32.40058738]
[1644339622990,48.28121598,111.65,111.55,32.40058738]
[1644339623195,17.9183,111.7,111.55,32.40058738]
[1644339623395,4.479,111.73,111.57,0.44]
[1644339623591,4.479,111.73,111.61,13.4337]
[1644339623794,0.44958781,111.75,111.62,10.73]
[1644339623992,0.44958781,111.75,111.62,12.70707899]
[1644339623993,4.92558781,111.75,111.62,12.70707899]
[1644339624195,35.49042229,111.74,111.62,18.95707899]
[1644339624393,39.96742229,111.74,111.62,18.95707899]
[1644339624591,39.96742229,111.74,111.65,13.4297]
[1644339624794,0.44958781,111.75,111.66,10.73]
[1644339624999,0.44958781,111.75,111.67,0.44]
[1644339625196,4.476,111.82,111.67,48.0]
[1644339625394,4.474,111.85,111.68,20.72054231]
[1644339625593,4.474,111.85,111.68,28.69759167]
[1644339625795,48.81054078,111.84,111.68,28.94759167]
[1644339625995,4.473,111.83,111.69,1.97704936]
[1644339626294,39.3305824,111.82,111.7,10.73]
[1644339626699,39.3305824,111.82,111.72,13.42]
[1644339627196,4.473,111.81,111.72,13.42]
[1644339627396,35.61496819,111.8,111.69,10.73]
[1644339627597,4.474,111.79,111.69,10.73]
[1644339627798,39.01190243,111.78,111.69,10.73]
[1644339628198,45.26190243,111.78,111.69,10.73]
[1644339628397,4.474,111.77,111.69,10.73]
[1644339628698,47.61864929,111.76,111.65,1.97240459]
[1644339628997,47.61864929,111.76,111.68,13.4249]
[1644339629197,47.86864929,111.76,111.69,10.73]
[1644339629408,53.86864929,111.76,111.66,15.205]
[1644339629598,53.9018205,111.76,111.66,10.73]
[1644339629798,4.475,111.75,111.63,10.73]
[1644339629998,47.02227548,111.74,111.63,10.73]
[1644339630199,53.27227548,111.74,111.63,10.73]
[1644339630399,4.476,111.73,111.63,24.1618]
[1644339630600,35.0768145,111.72,111.63,10.73]
[1644339630798,4.477,111.71,111.59,1.97240459]
[1644339631001,41.49522915,111.7,111.57,15.206]
[1644339631203,0.03317121,111.69,111.57,15.206]
[1644339631800,0.03317121,111.69,111.57,28.643]
[1644339632102,0.03317121,111.69,111.57,34.643]
[1644339632300,0.03317121,111.69,111.57,30.417]
[1644339633001,0.03317121,111.69,111.57,45.28905794]
[1644339633403,0.03317121,111.69,111.57,55.20737802]
[1644339634106,0.03317121,111.69,111.57,71.81293703]
[1644339635107,0.03317121,111.69,111.57,72.25293703]
[1644339635310,0.03317121,111.69,111.57,71.81293703]
[1644339635506,0.03317121,111.69,111.57,125.20293703]
[1644339638309,0.03317121,111.69,111.58,17.916]
[1644339638510,35.12431726,111.67,111.59,10.73]
[1644339638711,35.37431726,111.67,111.59,10.98]
[1644339639112,35.12431726,111.67,111.59,41.86426691]
[1644339639312,0.03317121,111.68,111.59,41.86426691]
[1644339639512,6.0,111.7,111.59,41.86426691]
[1644339639712,0.03317121,111.69,111.6,13.4357]
[1644339639915,0.03317121,111.7,111.61,10.73]
[1644339640113,0.03317121,111.72,111.57,13.3525]
[1644339640317,0.03317121,111.69,111.53,55.5306]
[1644339640514,44.68602787,111.7,111.53,70.40265794]
[1644339640716,58.44919908,111.7,111.53,70.40265794]
[1644339640913,0.03323001,111.69,111.53,70.40265794]
[1644339641115,0.03323001,111.69,111.53,79.62042247]
[1644339641319,4.479,111.68,111.53,79.62042247]
[1644339641516,39.71954269,111.67,111.53,133.26042247]
[1644339641714,39.31709051,111.65,111.55,13.4417]
[1644339642117,45.31709051,111.65,111.55,13.4417]
[1644339642315,45.56709051,111.65,111.55,13.4417]
[1644339642914,39.56709051,111.65,111.55,13.4417]
[1644339643117,45.56709051,111.65,111.53,54.26412247]
[1644339643316,0.03323001,111.64,111.53,54.51412247]
[1644339643514,0.03323001,111.64,111.53,39.64206453]
[1644339643716,37.32423135,111.63,111.53,33.64206453]
[1644339643915,37.35746136,111.63,111.53,33.64206453]
[1644339644115,43.60746136,111.63,111.53,33.39206453]
[1644339644516,43.60746136,111.63,111.53,22.66206453]
[1644339644816,6.03323001,111.63,111.53,54.13968148]
[1644339645019,6.03323001,111.63,111.54,53.39]
[1644339645217,0.03323001,111.66,111.56,13.4377]
[1644339645416,0.03323001,111.67,111.56,13.4377]
[1644339645617,6.03323001,111.68,111.56,19.4377]
[1644339645817,6.03323001,111.68,111.56,19.6877]
[1644339645818,46.45816092,111.67,111.56,19.6877]
[1644339646018,41.97916092,111.67,111.56,19.6877]
[1644339646420,41.97916092,111.67,111.56,45.28975794]
[1644339646625,0.03323001,111.68,111.56,124.50308148]
[1644339646824,0.03323001,111.72,111.58,0.44]
[1644339647026,0.03323001,111.67,111.62,13.4312]
[1644339647224,0.03323001,111.71,111.6,10.73]
[1644339647424,45.29183001,111.73,111.59,16.98]
[1644339647628,46.61876532,111.72,111.59,16.98]
[1644339648026,46.61876532,111.72,111.6,13.4358]
[1644339648225,46.86876532,111.72,111.61,4.477]
[1644339648448,4.477,111.71,111.58,46.75561701]
[1644339648647,39.17185886,111.7,111.58,6.0]
[1644339648848,4.478,111.69,111.58,6.0]
[1644339649048,37.3015976,111.68,111.55,10.73]
[1644339649249,6.0,111.69,111.58,13.4376]
[1644339649449,6.0,111.69,111.58,30.1676]
[1644339649652,6.25,111.69,111.58,30.1676]
[1644339650048,0.25,111.69,111.58,30.4176]
[1644339650449,0.25,111.69,111.58,30.1676]
[1644339650853,10.728,111.7,111.58,30.1676]
[1644339651049,0.25,111.7,111.58,30.1676]
[1644339651248,22.83,111.72,111.58,30.1676]
[1644339651448,33.308,111.72,111.58,30.1676]
[1644339651849,40.94902416,111.71,111.58,30.4176]
[1644339652052,46.94902416,111.71,111.58,30.4176]
[1644339652752,47.19902416,111.71,111.58,30.4176]
[1644339653953,41.19902416,111.71,111.58,83.8076]
[1644339654153,47.19902416,111.71,111.59,1.98745399]
[1644339654354,47.19902416,111.71,111.62,13.4322]
[1644339654654,40.81283001,111.73,111.62,13.6822]
[1644339654857,22.8678,111.77,111.63,1.98754841]
[1644339655056,6.97610215,111.76,111.64,10.73]
[1644339655259,4.476,111.79,111.64,15.456]
[1644339655455,4.476,111.79,111.68,53.39]
[1644339655656,4.474,111.81,111.68,70.12]
[1644339655855,3.72451029,111.82,111.68,72.35754841]
[1644339656156,4.474,111.81,111.68,18.96754841]
[1644339656356,2.50140756,111.8,111.68,16.98]
[1644339656557,4.474,111.79,111.69,13.4252]
[1644339656754,44.96820819,111.78,111.69,13.6752]
[1644339656958,4.474,111.77,111.69,19.6752]
[1644339657157,42.46680063,111.78,111.69,19.6752]
[1644339657356,2.50413487,111.77,111.69,13.4252]
[1644339657558,41.360655,111.76,111.69,13.4252]
[1644339657760,36.885655,111.76,111.67,13.4278]
[1644339657959,43.135655,111.76,111.67,13.4278]
[1644339658157,6.25,111.76,111.67,13.4278]
[1644339658358,4.475,111.77,111.67,13.6778]
[1644339658558,3.72451029,111.8,111.67,13.6778]
[1644339658760,6.25,111.8,111.67,26.39534841]
[1644339658958,2.50599188,111.79,111.67,85.78534841]
[1644339659158,45.04160973,111.78,111.67,85.78534841]
[1644339659459,51.04160973,111.78,111.67,26.39534841]
[1644339659658,2.50401729,111.77,111.67,30.4078]
[1644339659858,42.59299939,111.76,111.67,30.4078]
[1644339660663,48.59299939,111.76,111.65,13.4303]
[1644339660862,4.476,111.75,111.65,13.4303]
[1644339661060,6.0,111.75,111.65,13.4303]
[1644339661259,38.97852022,111.74,111.65,13.4303]
[1644339661665,45.22852022,111.74,111.65,13.4303]
[1644339661965,4.476,111.77,111.65,13.6803]
[1644339662161,6.0,111.77,111.65,21.66784841]
[1644339662361,0.25,111.77,111.65,21.66784841]
[1644339662764,9.72451029,111.79,111.65,21.66784841]
[1644339662961,38.48151568,111.78,111.65,21.66784841]
[1644339663163,2.49696908,111.77,111.65,21.66784841]
[1644339663362,6.0,111.78,111.65,85.78784841]
[1644339663564,6.0,111.78,111.65,86.22784841]
[1644339663763,6.0,111.78,111.66,62.08776453]
[1644339663965,6.0,111.78,111.69,13.4222]
[1644339664164,8.19951029,111.84,111.7,10.73]
[1644339664367,46.71803077,111.83,111.7,64.12]
[1644339664564,46.71803077,111.83,111.7,94.85429741]
[1644339664764,44.22235856,111.83,111.71,1.98287974]
[1644339665065,44.22235856,111.83,111.72,10.73]
[1644339665270,44.22235856,111.83,111.72,10.98]
[1644339665466,44.22235856,111.83,111.72,18.96287974]
[1644339665666,50.22235856,111.83,111.72,18.96287974]
[1644339665868,50.22235856,111.83,111.73,13.4166]
[1644339666065,50.22235856,111.83,111.73,24.1466]
[1644339666366,50.22235856,111.83,111.73,24.3966]
[1644339667065,4.473,111.84,111.73,30.3966]
[1644339667265,72.9735,111.85,111.73,30.3966]
[1644339667464,2.48939145,111.84,111.73,30.3966]
[1644339667869,77.4455,111.85,111.73,30.3966]
[1644339667870,4.472,111.85,111.74,1.9804128]
[1644339668067,45.54885986,111.84,111.77,13.4138]
[1644339668266,79.7336,111.87,111.77,13.6638]
[1644339668468,3.72451029,111.88,111.77,13.6638]
[1644339668667,2.48847438,111.86,111.77,13.6638]
[1644339668866,3.72451029,111.88,111.77,13.6638]
[1644339669067,0.25,111.88,111.77,13.6638]
[1644339669266,2.48600578,111.87,111.77,13.6638]
[1644339669671,2.48600578,111.87,111.77,19.6638]
[1644339669870,2.48600578,111.88,111.77,19.6638]
[1644339670067,2.48600578,111.88,111.77,21.64149794]
[1644339670266,2.48600578,111.89,111.77,21.64149794]
[1644339670472,38.72217169,111.87,111.77,19.4138]
[1644339671370,44.97217169,111.87,111.77,19.4138]
[1644339671570,44.97217169,111.87,111.77,13.4138]
[1644339671871,9.06354051,111.86,111.75,13.4191]
[1644339672073,35.69540437,111.85,111.75,13.4191]
[1644339672471,41.94540437,111.85,111.75,13.4191]
[1644339672870,38.52173872,111.83,111.75,13.4191]
[1644339673075,44.52173872,111.83,111.75,13.6691]
[1644339673473,44.52173872,111.83,111.75,13.4191]
[1644339674473,44.52173872,111.83,111.73,13.4213]
[1644339674874,36.18978276,111.81,111.73,13.4213]
[1644339676079,42.18978276,111.81,111.71,13.4237]
[1644339676279,4.473,111.8,111.6,181.616]
[1644339676481,46.97984451,111.79,111.62,10.73]
[1644339676679,15.206,111.78,111.62,16.73]
[1644339676879,38.32633683,111.77,111.62,16.73]
[1644339677079,62.23203683,111.77,111.64,13.4317]
[1644339677281,58.00603683,111.77,111.64,13.4317]
[1644339677480,6.25,111.77,111.65,1.97769794]
[1644339677680,0.25,111.77,111.65,99.70877121]
[1644339678082,0.25,111.77,111.66,68.92511807]
[1644339678285,0.25,111.79,111.67,10.73]
[1644339678480,36.56475898,111.78,111.67,12.70769794]
[1644339678682,42.81475898,111.78,111.68,15.40259794]
[1644339679081,42.81475898,111.78,111.68,15.65259794]
[1644339679282,42.81475898,111.78,111.68,15.40259794]
[1644339679482,42.81475898,111.78,111.68,13.6749]
[1644339680083,4.475,111.77,111.68,13.6749]
[1644339680284,35.5095556,111.76,111.68,13.6749]
[1644339680681,35.7595556,111.76,111.68,13.6749]
[1644339680885,41.7595556,111.76,111.68,13.4249]
[1644339681683,35.7595556,111.76,111.68,13.4249]
[1644339682301,35.5095556,111.76,111.68,13.6749]
[1644339682501,35.7595556,111.76,111.68,13.6749]
[1644339682902,35.7595556,111.76,111.68,13.4249]
[1644339683103,41.7595556,111.76,111.68,13.4249]
[1644339683302,4.475,111.75,111.66,13.43]
[1644339683508,42.31674308,111.74,111.66,13.43]
[1644339683902,0.25,111.74,111.66,13.43]
[1644339684902,4.476,111.73,111.64,13.4316]
[1644339685105,43.42444609,111.73,111.64,15.40929794]
[1644339685402,48.1887,111.78,111.64,32.13929794]
[1644339685603,6.97188947,111.77,111.64,32.13929794]
[1644339685803,2.49688947,111.76,111.64,45.94295108]
[1644339686008,2.49688947,111.76,111.64,46.19295108]
[1644339686203,8.49688947,111.76,111.64,46.19295108]
[1644339686404,36.7594868,111.75,111.64,24.4116]
[1644339686605,4.476,111.74,111.64,30.4116]
[1644339686807,46.0,111.71,111.65,1.97769794]
[1644339687007,43.79737888,111.69,111.54,79.1636]
[1644339687206,4.479,111.68,111.53,9.35828731]
[1644339687408,40.83414576,111.67,111.54,13.4425]
[1644339687608,4.48,111.66,111.53,9.35828731]
[1644339687911,43.36816006,111.65,111.53,9.35828731]
[1644339688108,47.61069764,111.63,111.53,9.35828731]
[1644339688308,10.481,111.65,111.53,9.35828731]
[1644339688513,10.481,111.65,111.53,22.80178731]
[1644339688710,0.25,111.66,111.53,24.1735]
[1644339689314,4.48,111.65,111.53,13.4435]
[1644339689513,37.11971903,111.64,111.45,58.5231]
[1644339689728,4.482,111.63,111.49,13.4482]
[1644339689915,44.30654928,111.62,111.46,55.5599]
[1644339690116,50.30654928,111.62,111.46,55.5599]
[1644339690317,13.4504,111.59,111.46,10.73]
[1644339690516,52.78790184,111.58,111.46,10.73]
[1644339690715,58.78790184,111.58,111.47,13.4508]
[1644339690915,59.03790184,111.58,111.47,13.7008]
[1644339691314,59.03790184,111.58,111.47,13.4508]
[1644339691614,59.03790184,111.58,111.45,10.825]
[1644339691615,44.28249142,111.56,111.45,10.825]
[1644339691816,4.484,111.55,111.45,24.2781]
[1644339692014,6.0,111.58,111.45,35.0081]
[1644339692214,6.25,111.58,111.45,53.52150734]
[1644339692415,0.25,111.58,111.45,53.52150734]
[1644339692615,6.0,111.6,111.46,0.44]
[1644339692915,36.18641677,111.6,111.5,13.4455]
[1644339693315,36.18641677,111.6,111.5,13.6955]
[1644339693717,36.43641677,111.6,111.5,13.6955]
[1644339694415,22.6647,111.61,111.5,13.6955]
[1644339694616,29.2598,111.63,111.5,13.6955]
[1644339695015,35.2598,111.63,111.5,13.4455]
[1644339695414,36.80050382,111.62,111.5,13.4455]
[1644339695615,56.24740382,111.62,111.5,13.4455]
[1644339696017,43.05050382,111.62,111.5,13.4455]
[1644339696219,43.05050382,111.62,111.5,13.6955]
[1644339696819,6.25,111.62,111.5,13.6955]
[1644339697215,0.25,111.62,111.5,30.4255]
[1644339697416,6.25,111.62,111.5,30.4255]
[1644339697617,4.481,111.64,111.5,30.4255]
[1644339697819,44.38706955,111.63,111.5,83.8155]
[1644339698017,44.38706955,111.63,111.5,129.5669]
[1644339698217,44.38706955,111.63,111.5,76.1769]
[1644339698419,4.481,111.62,111.5,70.1769]
[1644339698620,47.02058267,111.61,111.5,70.1769]
[1644339698824,47.27058267,111.61,111.5,70.1769]
[1644339699019,53.27058267,111.61,111.5,70.1769]
[1644339699220,53.27058267,111.61,111.5,24.4255]
[1644339700320,53.27058267,111.61,111.5,24.1755]
[1644339700521,53.27058267,111.61,111.5,13.4455]
[1644339700724,4.482,111.6,111.48,13.4502]
[1644339701024,37.11031086,111.59,111.44,95.8939]
[1644339701222,4.483,111.58,111.44,149.2839]
[1644339701624,10.483,111.58,111.44,149.2839]
[1644339701924,10.733,111.58,111.44,149.2839]
[1644339702127,10.733,111.58,111.45,10.73]
[1644339702324,38.98302042,111.57,111.46,13.4526]
[1644339702721,45.23302042,111.57,111.46,19.7026]
[1644339703123,6.25,111.57,111.46,19.7026]
[1644339703525,0.25,111.57,111.46,19.7026]
[1644339703722,6.0,111.57,111.46,19.7026]
[1644339704322,56.31636982,111.59,111.46,19.7026]
[1644339704624,51.83336982,111.59,111.46,19.7026]
[1644339705626,65.28376982,111.59,111.46,13.7026]
[1644339706425,65.53376982,111.59,111.46,13.7026]
[1644339707627,70.01676982,111.59,111.46,13.7026]
[1644339710131,24.1834,111.59,111.46,13.7026]
[1644339710328,10.733,111.59,111.46,13.7026]
[1644339710530,10.483,111.59,111.47,10.73]
[1644339710729,6.0,111.59,111.5,13.4477]
[1644339711130,46.19694054,111.59,111.5,13.6977]
[1644339711531,52.19694054,111.59,111.5,13.6977]
[1644339711736,52.44694054,111.59,111.5,13.6977]
[1644339712132,6.25,111.59,111.5,13.6977]
[1644339712333,0.25,111.59,111.5,13.4477]
[1644339712534,6.25,111.59,111.48,13.4502]
[1644339712735,4.482,111.58,111.48,13.4502]
[1644339713234,45.28343016,111.57,111.48,13.4502]
[1644339713633,51.53343016,111.57,111.48,13.7002]
[1644339714236,6.25,111.57,111.48,13.7002]
[1644339715433,0.25,111.57,111.48,13.7002]
[1644339715636,6.25,111.57,111.48,13.7002]
[1644339716236,0.25,111.57,111.48,13.7002]
[1644339716436,6.25,111.57,111.48,13.7002]
[1644339716841,6.0,111.57,111.48,13.7002]
[1644339717037,44.35469058,111.59,111.48,13.7002]
[1644339717239,6.0,111.59,111.48,13.7002]
[1644339717439,6.0,111.59,111.48,19.7002]
[1644339717645,6.0,111.6,111.48,73.0902]
[1644339717839,4.483,111.62,111.49,64.12]
[1644339718039,4.482,111.63,111.52,13.4439]
[1644339718239,0.25,111.62,111.52,13.6939]
[1644339718639,84.7946,111.66,111.52,13.6939]
[1644339718840,0.25,111.64,111.52,30.4239]
[1644339719039,0.25,111.64,111.52,83.8139]
[1644339719842,118.58844899,111.66,111.52,83.8139]
[1644339720040,4.48,111.65,111.52,83.8139]
[1644339720240,4.73,111.65,111.52,30.4239]
[1644339720440,10.73,111.65,111.52,24.4239]
[1644339721241,46.80182133,111.65,111.52,24.4239]
[1644339721741,60.24422133,111.65,111.52,24.4239]
[1644339722044,64.82751352,111.65,111.52,24.4239]
[1644339722448,67.19975803,111.65,111.52,24.4239]
[1644339722648,73.19975803,111.65,111.52,24.4239]
[1644339723247,70.72422133,111.65,111.52,24.4239]
[1644339723476,2.10775549,111.64,111.52,24.1739]
[1644339723776,2.10775549,111.64,111.5,13.4481]
[1644339723777,47.41579039,111.59,111.5,13.4481]
[1644339723974,51.89779039,111.59,111.5,13.4481]
[1644339724176,57.89779039,111.59,111.5,13.4481]
[1644339724475,58.14779039,111.59,111.5,13.4481]
[1644339724678,10.732,111.59,111.5,13.4481]
[1644339724973,6.25,111.59,111.5,13.6981]
[1644339725176,0.25,111.59,111.5,13.6981]
[1644339725474,6.25,111.59,111.5,67.0881]
[1644339725677,46.53511661,111.58,111.5,13.6981]
[1644339726077,52.78511661,111.58,111.5,13.6981]
[1644339726477,52.78511661,111.58,111.5,13.4481]
[1644339727678,52.78511661,111.58,111.5,13.6981]
[1644339730382,6.25,111.58,111.5,13.6981]
[1644339730580,0.25,111.58,111.5,13.6981]
[1644339730780,6.0,111.58,111.5,13.6981]
[1644339731181,6.25,111.58,111.5,13.6981]
[1644339731380,0.25,111.58,111.5,19.6981]
[1644339731581,6.25,111.58,111.5,19.6981]
[1644339731785,47.9601896,111.57,111.5,19.6981]
[1644339731982,6.25,111.58,111.5,19.6981]
[1644339732583,0.25,111.58,111.5,19.6981]
[1644339732782,6.25,111.58,111.5,19.6981]
[1644339732986,53.87693351,111.58,111.5,19.6981]
[1644339734283,53.87693351,111.58,111.5,13.6981]
[1644339735883,53.87693351,111.58,111.5,13.4481]
[1644339736084,53.87693351,111.58,111.48,13.4506]
[1644339736285,47.23503687,111.56,111.48,0.25]
[1644339736484,47.48503687,111.56,111.43,10.73]
[1644339736684,53.48503687,111.56,111.43,29.983]
[1644339736886,53.48503687,111.56,111.43,16.73]
[1644339737085,44.04220883,111.54,111.44,13.4555]
[1644339737283,4.484,111.53,111.44,13.4555]
[1644339737488,37.01739127,111.52,111.44,19.4555]
[1644339737685,43.01739127,111.52,111.44,19.4555]
[1644339737886,6.25,111.52,111.44,19.4555]
[1644339738287,0.25,111.52,111.44,19.4555]
[1644339738486,6.25,111.52,111.44,19.4555]
[1644339738688,6.25,111.52,111.44,19.7055]
[1644339738889,6.25,111.52,111.44,19.4555]
[1644339740005,40.9990519,111.54,111.44,19.4555]
[1644339740605,35.6112023,111.52,111.44,13.4555]
[1644339740804,4.485,111.51,111.44,13.4555]
[1644339741003,34.49102619,111.5,111.44,13.4555]
[1644339741203,0.25,111.5,111.44,13.4555]
[1644339741604,6.0,111.52,111.43,13.4578]
[1644339741804,6.25,111.52,111.4,10.73]
[1644339742005,4.485,111.51,111.39,1.27538669]
[1644339742207,52.31996218,111.51,111.39,1.27538669]
[1644339742508,55.04504666,111.49,111.39,44.864]
[1644339742805,19.7109,111.49,111.39,45.114]
[1644339743005,6.25,111.49,111.41,13.4592]
[1644339743204,6.25,111.49,111.41,13.7092]
[1644339743404,0.25,111.49,111.41,13.7092]
[1644339743605,6.25,111.49,111.41,13.7092]
[1644339744205,6.0,111.49,111.41,13.7092]
[1644339744805,4.486,111.54,111.41,13.7092]
[1644339744806,6.0,111.51,111.41,13.7092]
[1644339745009,39.25381432,111.51,111.41,13.7092]
[1644339745207,45.25381432,111.51,111.41,13.7092]
[1644339745407,6.0,111.51,111.41,13.7092]
[1644339745609,6.25,111.51,111.41,13.7092]
[1644339745808,0.25,111.51,111.41,13.7092]
[1644339746008,6.25,111.51,111.41,13.7092]
[1644339746209,6.0,111.51,111.41,13.7092]
[1644339746710,13.4559,111.53,111.41,19.7092]
[1644339746910,51.7598,111.55,111.41,83.8292]
[1644339747112,47.2748,111.55,111.41,83.8292]
[1644339747617,47.2748,111.55,111.42,20.94177311]
[1644339747810,41.17266803,111.53,111.45,13.454]
[1644339748109,47.17266803,111.53,111.45,13.454]
[1644339748311,47.42266803,111.53,111.45,13.704]
[1644339749515,6.25,111.53,111.45,13.704]
[1644339749731,53.2748,111.55,111.45,13.704]
[1644339750534,92.35747373,111.55,111.45,13.704]
[1644339750937,4.484,111.54,111.45,13.704]